bitfinex/quotes_SOLUSD_20241009
["timestamp","ask_amount","ask_price","bid_price","bid_amount"]
[1728453451531,7.7818467,144.43,144.4,13.11581682]
[1728453453203,0.8579467,144.43,144.42,20.04001682]
[1728453458409,0.8579467,144.43,144.42,13.11581682]
[1728453464644,0.8579467,144.43,144.42,14.50043202]
[1728453465538,0.8579467,144.43,144.42,13.11581682]
[1728453468237,0.8579467,144.43,144.42,20.04001682]
[1728453468421,0.8579467,144.43,144.42,21.42448579]
[1728453469336,0.8579467,144.43,144.42,13.11581682]
[1728453472448,0.8579467,144.43,144.42,14.50039394]
[1728453472747,0.8579467,144.43,144.42,21.42459394]
[1728453472943,0.8579467,144.43,144.42,20.04001682]
[1728453473117,0.8579467,144.43,144.42,21.42450993]
[1728453474845,0.8579467,144.43,144.42,20.04001682]
[1728453475143,0.8579467,144.43,144.42,13.11581682]
[1728453476647,0.8579467,144.43,144.42,14.50039485]
[1728453478023,0.8579467,144.43,144.42,13.11581682]
[1728453482524,0.8579467,144.43,144.42,14.50039161]
[1728453483254,0.8579467,144.43,144.42,20.04001682]
[1728453486345,0.8579467,144.43,144.42,13.11581682]
[1728453489432,0.8579467,144.43,144.35,34.6379]
[1728453489433,0.8579467,144.43,144.38,24.2411]
[1728453489637,0.8579467,144.43,144.39,20.04141682]
[1728453492051,0.8579467,144.43,144.41,20.04051682]
[1728453492836,0.8579467,144.43,144.42,1.38468134]
[1728453493034,0.8579467,144.43,144.41,13.11581682]
[1728453499465,6.9275,144.36,144.32,21.8664]
[1728453499669,19.04231235,144.42,144.33,6.9285]
[1728453499848,1.73151235,144.42,144.33,13.11581682]
[1728453500053,6.9261,144.38,144.32,21.8664]
[1728453500363,6.9269,144.37,144.33,13.11581682]
[1728453500747,6.9272,144.36,144.32,21.8664]
[1728453500973,6.9272,144.36,144.32,6.0772]
[1728453501261,6.9272,144.36,144.31,13.11581682]
[1728453501967,23.776884,144.39,144.3,13.11581682]
[1728453501968,1.73183546,144.35,144.3,13.11581682]
[1728453502143,23.776884,144.37,144.3,13.11581682]
[1728453502466,1.73211136,144.36,144.3,13.11581682]
[1728453503144,6.9282,144.34,144.3,13.11581682]
[1728453505249,23.776884,144.37,144.29,35.23531682]
[1728453505466,6.9286,144.33,144.29,35.23531682]
[1728453505970,6.9286,144.33,144.29,22.1195]
[1728453506265,6.9286,144.33,144.29,35.23531682]
[1728453507858,6.9281,144.34,144.3,1.38572629]
[1728453508055,6.9281,144.34,144.31,13.11581682]
[1728453508362,1.73215979,144.36,144.32,1.3856737]
[1728453508567,6.9276,144.35,144.31,13.11581682]
[1728453509059,2.58958652,144.38,144.31,13.11581682]
[1728453509374,6.9282,144.34,144.3,13.11581682]
[1728453511450,6.9282,144.34,144.3,14.50152538]
[1728453511641,6.9276,144.35,144.31,1.38568629]
[1728453511846,6.9276,144.35,144.3,20.04571682]
[1728453513557,6.9276,144.35,144.3,13.11581682]
[1728453514072,6.9272,144.36,144.3,13.11581682]
[1728453514253,6.927,144.37,144.32,13.11581682]
[1728453514459,1.73175364,144.4,144.32,13.11581682]
[1728453514658,6.9271,144.36,144.32,13.11581682]
[1728453518582,6.9273,144.36,144.32,13.11581682]
[1728453522355,19.04525364,144.4,144.32,13.11581682]
[1728453522557,6.9267,144.37,144.32,20.04481682]
[1728453525284,1.7317072,144.39,144.32,13.11581682]
[1728453525487,6.9274,144.36,144.32,13.11581682]
[1728453529184,1.7317072,144.39,144.32,13.11581682]
[1728453529382,6.9276,144.35,144.32,13.11581682]
[1728453530761,1.7317072,144.39,144.32,13.11581682]
[1728453531277,6.9271,144.36,144.32,13.11581682]
[1728453533471,6.9271,144.36,144.31,24.2525]
[1728453533673,6.9271,144.36,144.31,37.36831682]
[1728453534392,6.9271,144.36,144.31,24.2525]
[1728453534596,6.9271,144.36,144.31,37.36831682]
[1728453541289,1.7317072,144.39,144.31,37.36831682]
[1728453541599,6.9276,144.35,144.31,37.36831682]
[1728453542576,1.7317072,144.39,144.31,30.43891682]
[1728453542767,6.9269,144.37,144.33,13.11581682]
[1728453542969,6.9269,144.37,144.34,1.38538202]
[1728453543402,1.7317072,144.39,144.35,13.11581682]
[1728453543571,6.9245,144.42,144.38,13.11581682]
[1728453543766,7.7817467,144.43,144.39,1.38489904]
[1728453543968,7.7817467,144.43,144.4,13.11581682]
[1728453545271,0.8579467,144.43,144.41,1.38484055]
[1728453545682,0.8579467,144.43,144.4,13.11581682]
[1728453546371,7.7816467,144.43,144.4,13.11581682]
[1728453550594,6.9253,144.4,144.35,6.9274]
[1728453550891,6.9248,144.41,144.37,13.11581682]
[1728453551095,6.9248,144.41,144.38,1.38500261]
[1728453551487,6.9248,144.41,144.37,13.11581682]
[1728453553181,0.8579467,144.43,144.37,13.11581682]
[1728453553381,6.9253,144.4,144.37,13.11581682]
[1728453556498,6.9257,144.39,144.34,39.132]
[1728453556709,6.9257,144.39,144.37,13.11581682]
[1728453557607,6.9255,144.4,144.37,13.11581682]
[1728453557797,6.9257,144.39,144.37,13.11581682]
[1728453558700,6.9253,144.4,144.37,13.11581682]
[1728453559407,6.9253,144.4,144.37,1.38514773]
[1728453559617,6.9253,144.4,144.37,13.11581682]
[1728453561290,6.9261,144.38,144.35,13.11581682]
[1728453561491,1.7314404,144.39,144.35,13.11581682]
[1728453561492,6.9258,144.39,144.35,13.11581682]
[1728453564309,6.927,144.37,144.34,21.8125]
[1728453564495,6.927,144.37,144.34,34.92831682]
[1728453567826,6.9275,144.36,144.34,34.92831682]
[1728453570111,6.9275,144.36,144.34,21.8125]
[1728453570415,6.9275,144.36,144.33,13.11581682]
[1728453576122,6.9282,144.34,144.31,21.6822]
[1728453577709,6.9282,144.34,144.31,34.79801682]
[1728453579403,6.9282,144.34,144.32,13.11581682]
[1728453584118,6.9277,144.35,144.32,14.50144697]
[1728453584322,6.9277,144.35,144.32,13.11581682]
[1728453592722,1.73204371,144.37,144.31,34.79801682]
[1728453592937,6.9285,144.34,144.31,34.79801682]
[1728453593138,6.9285,144.34,144.31,21.6822]
[1728453593829,1.73204371,144.37,144.31,21.6822]
[1728453593830,6.9286,144.33,144.31,21.6822]
[1728453596830,6.9282,144.34,144.31,21.6822]
[1728453597034,1.73204371,144.37,144.31,21.6822]
[1728453597210,1.73204371,144.37,144.31,23.06794237]
[1728453597409,1.73204371,144.37,144.31,21.6822]
[1728453598014,6.9282,144.34,144.31,21.6822]
[1728453600639,6.9282,144.34,144.31,36.18370203]
[1728453600827,6.9282,144.34,144.31,34.79801682]
[1728453601037,6.9267,144.37,144.33,20.04421682]
[1728453602045,6.9265,144.38,144.33,20.04421682]
[1728453602235,6.9268,144.37,144.33,20.04421682]
[1728453603038,6.9268,144.37,144.33,13.11581682]
[1728453605736,6.9268,144.37,144.33,20.04431682]
[1728453605933,6.9268,144.37,144.33,21.42969245]
[1728453606119,19.9019264,144.41,144.33,20.04431682]
[1728453606326,6.9261,144.39,144.35,13.11581682]
[1728453607031,19.0443264,144.41,144.35,13.11581682]
[1728453607228,6.9262,144.38,144.35,13.11581682]
[1728453610736,6.9262,144.38,144.32,17.3219]
[1728453610937,0.8579467,144.43,144.31,21.6822]
[1728453610938,1.73169965,144.37,144.31,21.6822]
[1728453611138,1.73169965,144.37,144.32,13.11581682]
[1728453611139,6.9281,144.34,144.32,13.11581682]
[1728453612230,6.9281,144.34,144.31,21.6822]
[1728453612548,6.9281,144.34,144.31,34.79801682]
[1728453615842,6.9281,144.34,144.32,1.3856313]
[1728453617635,6.9281,144.34,144.31,34.79801682]
[1728453619553,6.9281,144.34,144.32,1.38563316]
[1728453620260,6.9281,144.34,144.31,34.79801682]
[1728453621547,6.9281,144.34,144.33,13.11581682]
[1728453622652,6.9281,144.34,144.31,34.79801682]
[1728453625863,6.9287,144.33,144.31,34.79801682]
[1728453626028,6.929,144.32,144.29,13.11581682]
[1728453627238,6.9296,144.31,144.29,13.11581682]
[1728453627766,6.9295,144.31,144.29,13.11581682]
[1728453628571,1.73225465,144.35,144.3,13.11581682]
[1728453628748,6.9281,144.34,144.32,13.11581682]
[1728453629052,6.9288,144.33,144.3,13.11581682]
[1728453629768,1.73228839,144.36,144.31,1.38583043]
[1728453629947,6.9282,144.34,144.32,13.11581682]
[1728453632159,6.9282,144.34,144.3,20.04571682]
[1728453632549,6.9282,144.34,144.3,13.11581682]
[1728453632857,6.9287,144.33,144.3,13.11581682]
[1728453635738,6.9282,144.34,144.3,20.04571682]
[1728453637064,6.9282,144.34,144.3,13.11581682]
[1728453637863,1.73223836,144.33,144.3,13.11581682]
[1728453638051,1.73231582,144.36,144.3,13.11581682]
[1728453638258,6.9299,144.31,144.28,19.66181682]
[1728453639362,6.9301,144.3,144.28,6.546]
[1728453639546,1.73256586,144.29,144.24,6.4549]
[1728453639749,6.9313,144.28,144.24,6.4549]
[1728453639938,6.9313,144.28,144.24,19.57071682]
[1728453640144,6.9313,144.28,144.24,26.50351682]
[1728453640758,1.73277612,144.32,144.26,13.11581682]
[1728453641061,6.93,144.3,144.27,1.38615167]
[1728453641851,6.9295,144.31,144.28,13.11581682]
[1728453643259,23.776884,144.29,144.2,17.3369]
[1728453643459,23.776884,144.29,144.19,13.11581682]
[1728453643460,6.9333,144.23,144.19,13.11581682]
[1728453643660,6.9339,144.22,144.19,13.11581682]
[1728453644253,1.73331326,144.28,144.17,30.45621682]
[1728453644450,6.9346,144.21,144.17,30.45621682]
[1728453645656,6.9346,144.21,144.17,17.3404]
[1728453645854,6.9348,144.2,144.16,13.11581682]
[1728453646059,23.776884,144.24,144.16,13.11581682]
[1728453646367,23.776884,144.24,144.15,22.6587]
[1728453646368,6.9338,144.22,144.18,13.11581682]
[1728453647254,6.9334,144.23,144.19,1.3868213]
[1728453647467,6.9342,144.22,144.2,13.11581682]
[1728453648771,1.73352663,144.25,144.2,13.11581682]
[1728453648949,6.9333,144.24,144.2,13.11581682]
[1728453650144,6.9325,144.25,144.22,13.11581682]
[1728453650645,1.73330208,144.28,144.22,13.11581682]
[1728453650843,6.9319,144.26,144.23,1.38644793]
[1728453651260,6.9319,144.26,144.22,20.04951682]
[1728453652146,1.73303853,144.25,144.21,22.5374]
[1728453652368,8.66583853,144.25,144.21,22.5374]
[1728453653144,6.9328,144.25,144.21,22.5374]
[1728453653344,6.9329,144.24,144.21,22.5374]
[1728453654873,6.9334,144.23,144.21,22.5374]
[1728453659051,6.9339,144.22,144.18,13.11581682]
[1728453662872,1.73329725,144.26,144.2,13.11581682]
[1728453663078,6.9329,144.24,144.2,13.11581682]
[1728453663383,6.9329,144.24,144.2,20.05041682]
[1728453663557,6.9329,144.24,144.2,13.11581682]
[1728453664364,6.9335,144.23,144.2,14.50254179]
[1728453664559,6.9335,144.23,144.2,13.11581682]
[1728453669095,8.09872586,144.3,144.17,22.0677]
[1728453669096,1.73345657,144.22,144.17,22.0677]
[1728453669384,6.9346,144.21,144.18,14.50275347]
[1728453669780,6.9346,144.21,144.18,13.11581682]
[1728453670588,6.9339,144.22,144.19,1.38693758]
[1728453670789,6.9339,144.22,144.18,20.05151682]
[1728453670987,6.9339,144.22,144.18,13.11581682]
[1728453671282,6.9344,144.21,144.18,13.11581682]
[1728453671667,1.73367082,144.24,144.18,14.50269778]
[1728453671865,6.9334,144.23,144.19,6.9352]
[1728453672084,6.9334,144.23,144.2,1.38672341]
[1728453672784,6.9334,144.23,144.2,14.50254023]
[1728453672969,1.73339446,144.27,144.22,13.11581682]
[1728453673286,6.9328,144.24,144.2,20.05061682]
[1728453674890,6.9325,144.25,144.21,6.9342]
[1728453675066,6.932,144.26,144.22,14.50232306]
[1728453675269,8.66584361,144.25,144.22,13.11581682]
[1728453675472,1.73323628,144.27,144.22,13.11581682]
[1728453675670,6.932,144.26,144.22,13.11581682]
[1728453675888,1.733129,144.29,144.22,42.90441682]
[1728453676097,6.9315,144.27,144.22,42.90441682]
[1728453676886,6.9319,144.26,144.22,42.90441682]
[1728453677182,6.9324,144.25,144.22,22.8549]
[1728453680875,1.73315337,144.24,144.18,22.8877]
[1728453681187,1.73337865,144.26,144.18,36.00351682]
[1728453681395,6.9327,144.25,144.21,6.9341]
[1728453681589,6.9327,144.25,144.2,20.05051682]
[1728453681778,8.66636989,144.24,144.2,20.05051682]
[1728453681979,6.9331,144.24,144.2,20.05051682]
[1728453682168,6.9331,144.24,144.2,13.11581682]
[1728453682374,6.9334,144.23,144.19,24.2726]
[1728453683062,1.73334533,144.27,144.19,17.3375]
[1728453683282,6.9343,144.21,144.18,22.8877]
[1728453683666,6.9339,144.22,144.18,22.8877]
[1728453683865,6.9339,144.22,144.19,14.50264679]
[1728453684275,1.73360473,144.25,144.19,14.50264679]
[1728453684485,6.9334,144.23,144.19,13.11581682]
[1728453687288,8.6673527,144.22,144.19,13.11581682]
[1728453687493,6.9339,144.22,144.19,13.11581682]
[1728453687667,6.9339,144.22,144.19,14.50263986]
[1728453688792,6.9339,144.22,144.19,13.11581682]
[1728453688980,6.9339,144.22,144.19,14.50264163]
[1728453689372,6.9339,144.22,144.19,13.11581682]
[1728453690892,6.9334,144.23,144.19,20.05101682]
[1728453691069,6.9334,144.23,144.2,1.38684518]
[1728453691682,6.9334,144.23,144.19,20.05101682]
[1728453692775,6.9344,144.21,144.18,22.8877]
[1728453696490,6.9352,144.2,144.18,22.8877]
[1728453698295,6.9352,144.2,144.16,13.11581682]
[1728453703898,6.9346,144.21,144.18,13.11581682]
[1728453704089,8.66856975,144.2,144.17,13.11581682]
[1728453704595,6.9348,144.2,144.17,13.11581682]
[1728453708179,6.9357,144.18,144.15,17.3422]
[1728453709207,6.9354,144.19,144.15,17.3422]
[1728453709687,1.73403262,144.18,144.15,17.3422]
[1728453709886,6.9358,144.18,144.15,17.3422]
[1728453710086,6.9354,144.19,144.16,13.11581682]
[1728453710285,6.9349,144.2,144.16,21.4395888]
[1728453710487,6.9349,144.2,144.16,20.05241682]
[1728453711811,6.9343,144.21,144.18,13.11581682]
[1728453713315,6.9343,144.21,144.17,6.9358]
[1728453715988,1.73406958,144.23,144.18,20.05151682]
[1728453715989,6.9338,144.22,144.18,20.05151682]
[1728453716294,1.73373957,144.21,144.18,20.05151682]
[1728453716501,1.73373957,144.21,144.18,13.11581682]
[1728453718005,1.73373957,144.21,144.17,17.34]
[1728453718317,6.9344,144.21,144.17,37.39201682]
[1728453721001,6.9334,144.23,144.19,13.11581682]
[1728453721298,1.73363949,144.22,144.19,13.11581682]
[1728453721500,6.9339,144.22,144.19,13.11581682]
[1728453722407,6.9334,144.23,144.19,20.05101682]
[1728453722617,1.73365239,144.22,144.19,20.05101682]
[1728453723098,6.9332,144.24,144.19,20.05101682]
[1728453723422,1.73354949,144.23,144.19,20.05101682]
[1728453723791,8.66694949,144.23,144.19,20.05101682]
[1728453723995,6.9334,144.23,144.19,20.05101682]
[1728453725116,6.9334,144.23,144.18,17.88132181]
[1728453725117,8.66752633,144.22,144.18,23.43]
[1728453725319,6.9339,144.22,144.18,36.54581682]
[1728453727317,6.9339,144.22,144.18,23.43]
[1728453727617,6.9339,144.22,144.18,36.54581682]
[1728453730326,8.66792585,144.21,144.18,16.4944]
[1728453730629,6.9343,144.21,144.18,16.4944]
[1728453731497,6.9343,144.21,144.18,30.99719006]
[1728453731703,23.776884,144.24,144.18,30.99719006]
[1728453731919,6.934,144.22,144.18,30.99719006]
[1728453732298,6.934,144.22,144.18,37.93289006]
[1728453732802,6.934,144.22,144.18,36.54591682]
[1728453734799,8.66822363,144.21,144.18,29.61021682]
[1728453734998,6.9346,144.21,144.18,29.61021682]
[1728453735319,6.9346,144.21,144.18,16.4944]
[1728453735519,6.9346,144.21,144.18,29.61021682]
[1728453736800,6.9346,144.21,144.18,16.4944]
[1728453736995,6.9346,144.21,144.18,29.61021682]
[1728453739722,1.73378916,144.2,144.15,6.6422]
[1728453739913,6.9356,144.19,144.15,6.6422]
[1728453740111,6.9356,144.19,144.15,19.75801682]
[1728453740602,6.9356,144.19,144.15,26.69511682]
[1728453741104,23.776884,144.22,144.15,26.69511682]
[1728453741308,6.9349,144.2,144.15,26.69511682]
[1728453741806,8.66827361,144.21,144.17,13.11581682]
[1728453746517,6.9348,144.2,144.17,13.11581682]
[1728453749029,6.9348,144.2,144.17,13.11581682]
[1728453749204,1.73379739,144.23,144.19,13.11581682]
[1728453749408,6.9339,144.22,144.19,13.11581682]
[1728453749734,6.9343,144.21,144.19,13.11581682]
[1728453751434,6.9343,144.21,144.17,20.05201682]
[1728453752010,6.9339,144.22,144.18,6.9357]
[1728453752533,6.9339,144.22,144.19,13.11581682]
[1728453754930,6.9343,144.21,144.19,13.11581682]
[1728453755136,6.9343,144.21,144.17,20.05191682]
[1728453756763,8.66845244,144.2,144.16,17.3413]
[1728453756936,6.9348,144.2,144.16,17.3413]
[1728453757114,6.9348,144.2,144.15,26.69511682]
[1728453757115,1.73393884,144.19,144.15,19.75801682]
[1728453757432,6.9358,144.18,144.15,19.75801682]
[1728453767437,1.73415905,144.17,144.14,15.2603]
[1728453767732,6.9372,144.15,144.12,19.60771682]
[1728453768241,6.9372,144.15,144.12,20.99530107]
[1728453768537,6.9372,144.15,144.12,19.60771682]
[1728453768848,6.9372,144.15,144.12,20.99530059]
[1728453769241,6.9372,144.15,144.12,19.60771682]
[1728453772042,8.67217684,144.14,144.12,6.4919]
[1728453772340,6.9377,144.14,144.12,6.4919]
[1728453772816,1.734577,144.17,144.11,15.7979]
[1728453773020,6.9378,144.14,144.11,15.7979]
[1728453773239,6.9378,144.14,144.11,30.30146188]
[1728453773622,1.73454859,144.18,144.11,30.30146188]
[1728453773826,6.9373,144.15,144.12,13.11581682]
[1728453774038,8.67121952,144.16,144.12,13.11581682]
[1728453775143,1.73441952,144.16,144.11,28.91371682]
[1728453775453,6.9375,144.15,144.11,30.30135708]
[1728453775627,6.9375,144.15,144.11,28.91371682]
[1728453775827,1.73441952,144.16,144.11,28.91371682]
[1728453776145,6.9377,144.14,144.11,28.91371682]
[1728453776734,6.9377,144.14,144.11,30.30136153]
[1728453777245,6.9377,144.14,144.11,28.91371682]
[1728453777626,6.9377,144.14,144.11,30.30136165]
[1728453778449,6.9377,144.14,144.11,28.91371682]
[1728453779144,1.73441952,144.16,144.11,28.91371682]
[1728453779348,1.73441952,144.16,144.12,1.38764461]
[1728453779536,8.67121952,144.16,144.11,35.85271682]
[1728453779853,8.67121952,144.16,144.12,1.38752367]
[1728453780034,6.9368,144.16,144.11,35.85271682]
[1728453780447,1.73441483,144.18,144.12,1.38750523]
[1728453780652,6.9363,144.17,144.12,14.91040523]
[1728453781149,1.73430817,144.16,144.12,13.5229]
[1728453781349,8.67110817,144.16,144.12,13.5229]
[1728453781558,6.9368,144.16,144.12,13.5229]
[1728453782054,6.9368,144.16,144.12,6.5847]
[1728453783053,1.73433646,144.2,144.15,13.11581682]
[1728453783234,6.9358,144.18,144.15,13.11581682]
[1728453785524,6.9353,144.19,144.15,13.11581682]
[1728453785730,6.9348,144.2,144.15,13.11581682]
[1728453786029,6.9348,144.2,144.15,20.05281682]
[1728453790462,6.9348,144.2,144.15,36.02831682]
[1728453790630,6.9348,144.2,144.16,1.38710687]
[1728453790959,6.9348,144.2,144.15,36.02831682]
[1728453791661,23.776884,144.23,144.15,36.02831682]
[1728453791840,6.9353,144.19,144.15,29.09131682]
[1728453792040,6.9353,144.19,144.15,30.47850197]
[1728453793434,6.9353,144.19,144.15,37.41570197]
[1728453793853,6.9353,144.19,144.15,36.02851682]
[1728453794056,6.9349,144.2,144.15,36.02851682]
[1728453794846,6.9349,144.2,144.16,6.9367]
[1728453795037,1.73399244,144.22,144.17,13.11581682]
[1728453795038,8.66779244,144.22,144.17,13.11581682]
[1728453795236,6.9338,144.22,144.18,6.9357]
[1728453795853,1.73363481,144.24,144.17,20.05191682]
[1728453795854,6.9343,144.21,144.17,20.05191682]
[1728453800672,1.73363481,144.24,144.19,20.05101682]
[1728453800845,1.73359542,144.23,144.19,20.05101682]
[1728453801561,8.66729542,144.23,144.19,13.11581682]
[1728453802562,1.73359542,144.23,144.19,13.11581682]
[1728453802765,6.9339,144.22,144.19,13.11581682]
[1728453804065,6.9339,144.22,144.18,6.9356]
[1728453804268,6.9339,144.22,144.18,20.05141682]
[1728453808547,1.73360004,144.21,144.16,36.78471682]
[1728453808752,23.776884,144.22,144.16,36.78471682]
[1728453808958,1.73385353,144.21,144.16,36.78471682]
[1728453809158,23.776884,144.22,144.16,36.78471682]
[1728453809477,1.73385667,144.21,144.16,36.78471682]
[1728453809973,6.9353,144.19,144.16,36.78471682]
[1728453810272,6.9349,144.2,144.16,36.78471682]
[1728453811268,23.776884,144.22,144.16,36.78471682]
[1728453811269,1.73383966,144.19,144.16,19.44341682]
[1728453811477,6.9354,144.19,144.16,19.44341682]
[1728453812446,8.67002715,144.18,144.15,15.9755]
[1728453812651,6.9363,144.17,144.15,15.9755]
[1728453813557,6.9359,144.18,144.15,15.9755]
[1728453817378,1.73406861,144.17,144.13,24.2827]
[1728453817685,6.9363,144.17,144.14,13.11581682]
[1728453817866,6.9367,144.16,144.14,13.11581682]
[1728453818070,6.9367,144.16,144.12,19.55071682]
[1728453818863,6.9372,144.15,144.12,19.55071682]
[1728453820397,6.9372,144.15,144.12,20.93824812]
[1728453823381,6.9367,144.17,144.13,1.38753015]
[1728453823573,8.6709986,144.17,144.12,26.48931682]
[1728453823781,1.73432754,144.16,144.12,26.48931682]
[1728453824091,6.9367,144.17,144.12,26.48931682]
[1728453824267,6.9367,144.17,144.12,27.87676671]
[1728453824466,6.9367,144.17,144.12,20.93816671]
[1728453824669,6.9367,144.17,144.13,6.9381]
[1728453824864,6.9359,144.18,144.14,13.11581682]
[1728453825473,6.9359,144.18,144.14,20.05341682]
[1728453827367,6.9359,144.18,144.14,13.11581682]
[1728453827573,8.67042306,144.17,144.13,20.05381682]
[1728453827767,6.9363,144.17,144.13,20.05381682]
[1728453828273,6.9357,144.18,144.14,6.9376]
[1728453829091,6.9357,144.18,144.13,20.05381682]
[1728453829293,1.73412874,144.17,144.13,20.05381682]
[1728453829494,6.9364,144.17,144.13,20.05381682]
[1728453833586,6.9364,144.17,144.13,13.11581682]
[1728453833995,8.67121401,144.16,144.12,23.7811]
[1728453834206,6.937,144.16,144.12,23.7811]
[1728453834903,8.67152595,144.15,144.12,6.4349]
[1728453835196,6.9372,144.15,144.12,6.4349]
[1728453839904,6.9368,144.16,144.13,1.38752779]
[1728453840904,6.9368,144.16,144.12,20.93820227]
[1728453842879,6.9368,144.16,144.12,19.55071682]
[1728453844485,1.73439551,144.15,144.12,19.55071682]
[1728453844984,8.67159551,144.15,144.12,19.55071682]
[1728453845290,6.9372,144.15,144.12,19.55071682]
[1728453848408,1.73439474,144.18,144.13,1.38751374]
[1728453848601,6.9366,144.17,144.12,26.48921682]
[1728453848778,6.9367,144.16,144.12,26.48921682]
[1728453850818,6.9372,144.15,144.12,19.55071682]
[1728453851913,6.9368,144.16,144.12,26.48931682]
[1728453852087,1.73439474,144.18,144.12,26.48931682]
[1728453852422,6.9366,144.17,144.14,13.11581682]
[1728453852785,6.9359,144.18,144.14,21.44065346]
[1728453853611,6.9359,144.18,144.14,14.50315346]
[1728453853822,6.9359,144.18,144.14,13.11581682]
[1728453854809,6.9363,144.17,144.13,24.283]
[1728453856228,1.73411037,144.21,144.13,24.283]
[1728453856229,6.9358,144.18,144.14,21.44075237]
[1728453856402,6.9358,144.18,144.14,13.11581682]
[1728453857005,6.937,144.16,144.12,13.3733]
[1728453857193,6.9363,144.17,144.12,19.55071682]
[1728453857397,6.9363,144.17,144.12,26.48921682]
[1728453859027,6.9363,144.17,144.13,1.38736386]
[1728453859723,1.73423016,144.19,144.13,1.38736386]
[1728453859912,6.9375,144.15,144.12,19.55071682]
[1728453861102,6.9375,144.15,144.13,1.38738205]
[1728453861619,6.9375,144.15,144.12,19.55071682]
[1728453861845,6.9375,144.15,144.12,6.4349]
[1728453862010,6.9375,144.15,144.12,19.55071682]
[1728453865828,6.9375,144.15,144.12,19.50071682]
[1728453873333,6.9375,144.15,144.13,1.38740807]
[1728453874615,6.9375,144.15,144.12,19.50071682]
[1728453875210,6.9375,144.15,144.13,1.38740913]
[1728453876235,6.9375,144.15,144.12,19.50071682]
[1728453876913,1.73423016,144.19,144.12,6.3849]
[1728453876914,17.3398,144.18,144.12,6.3849]
[1728453877236,1.73443478,144.17,144.12,6.3849]
[1728453878046,6.9381,144.13,144.12,6.3849]
[1728453878232,1.73443478,144.17,144.01,50.70993347]
[1728453878233,6.9393,144.11,144.08,6.6442]
[1728453879919,6.9396,144.1,144.08,6.6442]
[1728453884816,6.9396,144.1,144.07,15.8155]
[1728453885127,1.73480304,144.15,144.05,6.1315]
[1728453885128,23.776884,144.13,144.05,6.1315]
[1728453885325,6.9411,144.07,144.05,6.1315]
[1728453886124,6.9415,144.06,144.05,6.1315]
[1728453887820,6.9415,144.06,144.03,29.52661682]
[1728453888730,6.9411,144.07,144.04,1.38823558]
[1728453888933,6.9411,144.07,144.03,36.46951682]
[1728453889146,6.9411,144.07,144.04,1.38821135]
[1728453890848,6.9411,144.07,144.05,13.11581682]
[1728453892059,1.73521066,144.1,144.06,1.38817466]
[1728453892239,1.73504969,144.11,144.06,1.38817466]
[1728453892445,1.73504969,144.11,144.07,13.11581682]
[1728453893033,6.9401,144.09,144.07,13.11581682]
[1728453896856,6.9401,144.09,144.07,14.50379883]
[1728453897562,6.9401,144.09,144.07,13.11581682]
[1728453902341,6.9396,144.1,144.07,28.79041682]
[1728453907841,6.9396,144.1,144.08,1.38789205]
[1728453908242,6.9396,144.1,144.07,28.79041682]
[1728453908967,6.9396,144.1,144.08,1.38783955]
[1728453909151,1.73485028,144.14,144.08,1.38783955]
[1728453909350,6.9392,144.11,144.08,1.38783955]
[1728453909656,6.9392,144.11,144.07,28.79041682]
[1728453910868,6.9392,144.11,144.08,1.38782309]
[1728453912160,6.9392,144.11,144.07,28.79041682]
[1728453914446,6.9386,144.12,144.09,13.11581682]
[1728453915370,6.9386,144.12,144.1,1.38768861]
[1728453915969,6.9386,144.12,144.09,13.11581682]
[1728453917262,6.9386,144.12,144.1,1.38768777]
[1728453918958,6.9386,144.12,144.09,13.11581682]
[1728453919275,6.9378,144.14,144.1,1.38769397]
[1728453919459,6.9378,144.14,144.11,13.11581682]
[1728453919646,6.9378,144.14,144.12,1.38749215]
[1728453920064,6.9372,144.15,144.12,1.38749215]
[1728453920260,6.9372,144.15,144.11,13.11581682]
[1728453920463,6.9372,144.15,144.12,1.38746456]
[1728453924156,1.73428511,144.18,144.13,6.2055]
[1728453924364,6.9353,144.19,144.15,13.11581682]
[1728453924671,6.9353,144.19,144.16,1.38706457]
[1728453924876,6.9353,144.19,144.15,13.11581682]
[1728453934494,6.9359,144.18,144.14,13.11581682]
[1728453934665,6.9359,144.18,144.15,1.38712527]
[1728453934869,6.9359,144.18,144.14,13.11581682]